[Event "*** Titled Tuesday Blitz"]
[Site "Chess.com"]
[Date "2020.04.21"]
[Round "1"]
[White "Violord"]
[Black "BrizuelaReivis"]
[Result "1-0"]
[WhiteElo "2607"]
[BlackElo "2269"]
[TimeControl "180+1"]
[EndTime "10:05:42 PDT"]
[Termination "Violord won by resignation"]

1. e4 {[%clk 0:02:55.3]} 1... e6 {[%clk 0:02:59.9]} 2. d3 {[%clk 0:02:54.5]}
2... d5 {[%clk 0:03:00.3]} 3. Qe2 {[%clk 0:02:55.1]} 3... Be7 {[%clk 0:02:58.1]}
4. g3 {[%clk 0:02:54.4]} 4... Nf6 {[%clk 0:02:58]} 5. Bg2 {[%clk 0:02:54]} 5...
c5 {[%clk 0:02:57.6]} 6. e5 {[%clk 0:02:53]} 6... Nfd7 {[%clk 0:02:56.6]} 7. f4
{[%clk 0:02:53.6]} 7... Nc6 {[%clk 0:02:56.3]} 8. Nf3 {[%clk 0:02:53.5]} 8... b5
{[%clk 0:02:54.3]} 9. O-O {[%clk 0:02:53.2]} 9... b4 {[%clk 0:02:46.2]} 10. Be3
{[%clk 0:02:50.1]} 10... a5 {[%clk 0:02:45.2]} 11. Nbd2 {[%clk 0:02:49.4]} 11...
Ba6 {[%clk 0:02:44.3]} 12. g4 {[%clk 0:02:34.3]} 12... a4 {[%clk 0:02:40.5]} 13.
Bf2 {[%clk 0:02:31.7]} 13... a3 {[%clk 0:02:20.8]} 14. b3 {[%clk 0:02:31]} 14...
Qc7 {[%clk 0:02:11]} 15. h4 {[%clk 0:02:27.5]} 15... h5 {[%clk 0:01:22.2]} 16.
gxh5 {[%clk 0:02:22.4]} 16... Rxh5 {[%clk 0:01:15.9]} 17. Ng5 {[%clk 0:02:22.2]}
17... g6 {[%clk 0:01:12.4]} 18. Qg4 {[%clk 0:02:18.4]} 18... Nd4 {[%clk
0:01:07.7]} 19. Rac1 {[%clk 0:02:13.2]} 19... O-O-O {[%clk 0:01:01.7]} 20. Nxf7
{[%clk 0:02:09.7]} 20... Rf8 {[%clk 0:00:49.4]} 21. Bxd4 {[%clk 0:02:03.6]}
21... cxd4 {[%clk 0:00:48.7]} 22. Ng5 {[%clk 0:02:02.7]} 22... Bxg5 {[%clk
0:00:40.3]} 23. hxg5 {[%clk 0:02:00.6]} 23... Nc5 {[%clk 0:00:35.4]} 24. Nf3
{[%clk 0:01:56.7]} 24... Qb6 {[%clk 0:00:29.5]} 25. Nh4 {[%clk 0:01:48.6]} 25...
Rfh8 {[%clk 0:00:15.5]} 26. Nxg6 {[%clk 0:01:45.4]} 26... R8h7 {[%clk
0:00:16.4]} 27. Nf8 {[%clk 0:01:39.9]} 27... Rh4 {[%clk 0:00:15.5]} 28. Qg3
{[%clk 0:01:38.6]} 28... Rh8 {[%clk 0:00:13.6]} 29. Ng6 {[%clk 0:01:37.6]} 1-0

[Event "*** Titled Tuesday Blitz"]
[Site "Chess.com"]
[Date "2020.04.21"]
[Round "1"]
[White "Alexander_Moskalenko"]
[Black "MateSchmate"]
[Result "1-0"]
[WhiteElo "2901"]
[BlackElo "2457"]
[TimeControl "180+1"]
[EndTime "10:05:44 PDT"]
[Termination "Alexander_Moskalenko won by resignation"]

1. e4 {[%clk 0:03:00.4]} 1... e6 {[%clk 0:03:00.2]} 2. d4 {[%clk 0:03:00.2]}
2... d5 {[%clk 0:03:00.8]} 3. Nd2 {[%clk 0:03:00.8]} 3... a6 {[%clk 0:03:00.8]}
4. Ngf3 {[%clk 0:02:56.2]} 4... Nf6 {[%clk 0:03:00.6]} 5. e5 {[%clk 0:02:56]}
5... Nfd7 {[%clk 0:03:00.9]} 6. Bd3 {[%clk 0:02:56.3]} 6... c5 {[%clk
0:03:01.5]} 7. c3 {[%clk 0:02:57.2]} 7... Nc6 {[%clk 0:03:02.1]} 8. O-O {[%clk
0:02:56]} 8... g5 {[%clk 0:03:02.4]} 9. dxc5 {[%clk 0:02:45.8]} 9... g4 {[%clk
0:03:02.5]} 10. Nd4 {[%clk 0:02:45.2]} 10... Ncxe5 {[%clk 0:03:03]} 11. Be2
{[%clk 0:02:42.5]} 11... Bxc5 {[%clk 0:02:34.6]} 12. Bxg4 {[%clk 0:02:41.5]}
12... Nxg4 {[%clk 0:02:24.9]} 13. Qxg4 {[%clk 0:02:40.9]} 13... Qf6 {[%clk
0:02:25.5]} 14. N2b3 {[%clk 0:02:38.8]} 14... Bxd4 {[%clk 0:02:22.6]} 15. cxd4
{[%clk 0:02:37]} 15... Qg6 {[%clk 0:02:22.3]} 16. Qh3 {[%clk 0:02:35.5]} 16...
Nf6 {[%clk 0:02:20.9]} 17. Re1 {[%clk 0:02:32.8]} 17... Qg4 {[%clk 0:02:17.1]}
18. Qxg4 {[%clk 0:02:26.6]} 18... Nxg4 {[%clk 0:02:18]} 19. Bg5 {[%clk
0:02:26.5]} 19... Rg8 {[%clk 0:02:15.3]} 20. Bh4 {[%clk 0:02:26.2]} 20... Bd7
{[%clk 0:02:11.9]} 21. Nc5 {[%clk 0:02:19.7]} 21... b6 {[%clk 0:02:06.1]} 22.
Nb7 {[%clk 0:02:08.7]} 22... f6 {[%clk 0:01:49]} 23. Rac1 {[%clk 0:02:05.6]}
23... Ke7 {[%clk 0:01:44]} 24. Bg3 {[%clk 0:01:58.8]} 24... Rac8 {[%clk
0:01:44.2]} 25. Bd6+ {[%clk 0:01:51.7]} 25... Kf7 {[%clk 0:01:43.6]} 26. Bc7
{[%clk 0:01:52.3]} 26... Ke7 {[%clk 0:01:35.4]} 27. Bxb6 {[%clk 0:01:51.2]}
27... Rxc1 {[%clk 0:01:34.2]} 28. Rxc1 {[%clk 0:01:51.1]} 28... Rb8 {[%clk
0:01:33.4]} 29. Rc7 {[%clk 0:01:44.8]} 29... Nh6 {[%clk 0:01:22.6]} 30. Ba7
{[%clk 0:01:41.3]} 30... Rc8 {[%clk 0:01:06.3]} 31. Bc5+ {[%clk 0:01:41.5]}
31... Ke8 {[%clk 0:01:06.9]} 32. Nd6+ {[%clk 0:01:39.6]} 32... Kd8 {[%clk
0:01:07.2]} 33. Ra7 {[%clk 0:01:35.1]} 33... Rb8 {[%clk 0:01:01.4]} 34. b4
{[%clk 0:01:32.4]} 34... Bb5 {[%clk 0:00:54.7]} 35. Rxh7 {[%clk 0:01:28.3]}
35... Ng8 {[%clk 0:00:52.7]} 36. Rg7 {[%clk 0:01:20.8]} 36... Ne7 {[%clk
0:00:48.8]} 37. Nxb5 {[%clk 0:01:19.9]} 37... Nf5 {[%clk 0:00:44.9]} 38. Rg8+
{[%clk 0:01:19.8]} 1-0

[Event "*** Titled Tuesday Blitz"]
[Site "Chess.com"]
[Date "2020.04.21"]
[Round "1"]
[White "12teen"]
[Black "mamey78"]
[Result "1-0"]
[WhiteElo "2763"]
[BlackElo "2398"]
[TimeControl "180+1"]
[EndTime "10:05:45 PDT"]
[Termination "12teen won by resignation"]

1. g3 {[%clk 0:02:56.9]} 1... e5 {[%clk 0:02:45.2]} 2. Bg2 {[%clk 0:02:57.8]}
2... Nf6 {[%clk 0:02:44.5]} 3. d3 {[%clk 0:02:56.1]} 3... d5 {[%clk 0:02:44.1]}
4. Nc3 {[%clk 0:02:56.7]} 4... d4 {[%clk 0:02:40.3]} 5. Ne4 {[%clk 0:02:56.5]}
5... Be7 {[%clk 0:02:39.8]} 6. Nxf6+ {[%clk 0:02:56]} 6... Bxf6 {[%clk
0:02:39.2]} 7. c4 {[%clk 0:02:56.9]} 7... O-O {[%clk 0:02:35.5]} 8. Nf3 {[%clk
0:02:55.6]} 8... a5 {[%clk 0:02:35]} 9. O-O {[%clk 0:02:54.9]} 9... Na6 {[%clk
0:02:34.8]} 10. a3 {[%clk 0:02:36.8]} 10... Nc5 {[%clk 0:02:32.7]} 11. b3 {[%clk
0:02:28.1]} 11... Re8 {[%clk 0:02:08]} 12. Bb2 {[%clk 0:02:26.5]} 12... c6
{[%clk 0:01:58.7]} 13. b4 {[%clk 0:02:25.7]} 13... axb4 {[%clk 0:01:55.5]} 14.
axb4 {[%clk 0:02:26.6]} 14... Rxa1 {[%clk 0:01:55.6]} 15. Bxa1 {[%clk
0:02:24.5]} 15... Ne6 {[%clk 0:01:52.7]} 16. Nd2 {[%clk 0:02:22.7]} 16... Ng5
{[%clk 0:01:48.6]} 17. h4 {[%clk 0:02:20.3]} 17... Ne6 {[%clk 0:01:47]} 18. Qb3
{[%clk 0:02:16.4]} 18... Be7 {[%clk 0:01:42.9]} 19. c5 {[%clk 0:02:11.7]} 19...
Nc7 {[%clk 0:01:40.9]} 20. Nc4 {[%clk 0:01:55.3]} 20... Be6 {[%clk 0:01:37.8]}
21. Qc2 {[%clk 0:01:55.9]} 21... f6 {[%clk 0:01:34.8]} 22. e3 {[%clk 0:01:49.7]}
22... Nb5 {[%clk 0:01:25.2]} 23. Re1 {[%clk 0:01:47]} 23... Bd5 {[%clk
0:01:20.5]} 24. exd4 {[%clk 0:01:43.8]} 24... Bxg2 {[%clk 0:01:18.8]} 25. Kxg2
{[%clk 0:01:44.7]} 25... Nxd4 {[%clk 0:01:17.5]} 26. Bxd4 {[%clk 0:01:43.8]}
26... Qxd4 {[%clk 0:01:17.6]} 27. Re4 {[%clk 0:01:43.4]} 27... Qd5 {[%clk
0:01:16.3]} 28. Ne3 {[%clk 0:01:41.8]} 28... Qd7 {[%clk 0:01:15.8]} 29. Qc4+
{[%clk 0:01:37.1]} 29... Kh8 {[%clk 0:01:03.7]} 30. d4 {[%clk 0:01:36.5]} 30...
Bf8 {[%clk 0:01:00.3]} 31. dxe5 {[%clk 0:01:32.7]} 31... fxe5 {[%clk 0:00:54]}
32. Ng4 {[%clk 0:01:30.7]} 32... Qf5 {[%clk 0:00:27.8]} 33. Qe2 {[%clk
0:01:25.2]} 1-0

[Event "*** Titled Tuesday Blitz"]
[Site "Chess.com"]
[Date "2020.04.21"]
[Round "1"]
[White "RATNAKARAN"]
[Black "EnergeticHay"]
[Result "1-0"]
[WhiteElo "2570"]
[BlackElo "2215"]
[TimeControl "180+1"]
[EndTime "10:05:45 PDT"]
[Termination "RATNAKARAN won by resignation"]

1. e4 {[%clk 0:03:00.9]} 1... c5 {[%clk 0:02:59.4]} 2. Nf3 {[%clk 0:03:00.5]}
2... d6 {[%clk 0:02:58.6]} 3. c3 {[%clk 0:03:00.7]} 3... Nf6 {[%clk 0:02:58.1]}
4. h3 {[%clk 0:03:00.4]} 4... Nc6 {[%clk 0:02:45.9]} 5. Bd3 {[%clk 0:02:58.7]}
5... g6 {[%clk 0:02:44.7]} 6. Bc2 {[%clk 0:02:58.5]} 6... a6 {[%clk 0:02:23.8]}
7. O-O {[%clk 0:02:58.9]} 7... c4 {[%clk 0:02:22.1]} 8. a4 {[%clk 0:02:56.7]}
8... Rb8 {[%clk 0:02:16.7]} 9. b3 {[%clk 0:02:54]} 9... cxb3 {[%clk 0:02:16.5]}
10. Bxb3 {[%clk 0:02:52.9]} 10... Nxe4 {[%clk 0:02:03.4]} 11. Re1 {[%clk
0:02:53]} 11... Nf6 {[%clk 0:01:57.9]} 12. Ng5 {[%clk 0:02:52.3]} 12... e6
{[%clk 0:01:56.4]} 13. d4 {[%clk 0:02:51.6]} 13... d5 {[%clk 0:01:55]} 14. Bf4
{[%clk 0:02:31.8]} 14... Bd6 {[%clk 0:01:54.2]} 15. Be5 {[%clk 0:02:30.8]} 15...
Bxe5 {[%clk 0:01:26.6]} 16. dxe5 {[%clk 0:02:30.3]} 16... Nd7 {[%clk 0:01:26.7]}
17. Nf3 {[%clk 0:02:23.2]} 17... O-O {[%clk 0:01:26.8]} 18. Qd2 {[%clk
0:02:22.9]} 18... Kg7 {[%clk 0:01:25.1]} 19. Na3 {[%clk 0:02:20.4]} 19... Nc5
{[%clk 0:01:24.6]} 20. Bc2 {[%clk 0:02:20.3]} 20... Ne7 {[%clk 0:01:14.7]} 21.
Rab1 {[%clk 0:02:15.5]} 21... Bd7 {[%clk 0:01:14.2]} 22. Qf4 {[%clk 0:02:12.5]}
22... Ng8 {[%clk 0:01:10.1]} 23. Rb4 {[%clk 0:02:04.4]} 23... a5 {[%clk
0:01:07.5]} 24. Rb2 {[%clk 0:02:02.2]} 24... Qe8 {[%clk 0:01:04.1]} 25. Nb5
{[%clk 0:01:57.7]} 25... Bxb5 {[%clk 0:00:59.9]} 26. Rxb5 {[%clk 0:01:57]} 26...
b6 {[%clk 0:01:00.4]} 27. Reb1 {[%clk 0:01:55.7]} 27... Qc6 {[%clk 0:01:00.6]}
28. Nd4 {[%clk 0:01:54.3]} 28... Qc7 {[%clk 0:00:58.6]} 29. h4 {[%clk
0:01:47.7]} 29... Rb7 {[%clk 0:00:47.6]} 30. h5 {[%clk 0:01:47.2]} 30... Qd8
{[%clk 0:00:47.3]} 31. Rxc5 {[%clk 0:01:42.3]} 31... bxc5 {[%clk 0:00:47.5]} 32.
Nxe6+ {[%clk 0:01:40.8]} 32... fxe6 {[%clk 0:00:47.1]} 33. Rxb7+ {[%clk
0:01:40.7]} 33... Kh8 {[%clk 0:00:45.2]} 34. hxg6 {[%clk 0:01:39]} 34... Ne7
{[%clk 0:00:28.7]} 35. Qh6 {[%clk 0:01:35.6]} 1-0

[Event "*** Titled Tuesday Blitz"]
[Site "Chess.com"]
[Date "2020.04.21"]
[Round "1"]
[White "BIG_Pirate"]
[Black "Kezin_Roman"]
[Result "0-1"]
[WhiteElo "2381"]
[BlackElo "2731"]
[TimeControl "180+1"]
[EndTime "10:05:47 PDT"]
[Termination "Kezin_Roman won on time"]

1. Nf3 {[%clk 0:02:56.1]} 1... d5 {[%clk 0:02:59.8]} 2. c4 {[%clk 0:02:56]} 2...
d4 {[%clk 0:02:59.2]} 3. g3 {[%clk 0:02:55]} 3... c5 {[%clk 0:02:57.3]} 4. Bg2
{[%clk 0:02:53.6]} 4... Nc6 {[%clk 0:02:57.6]} 5. e3 {[%clk 0:02:51.1]} 5... Nf6
{[%clk 0:02:55.2]} 6. O-O {[%clk 0:02:49]} 6... e5 {[%clk 0:02:54.8]} 7. exd4
{[%clk 0:02:49.2]} 7... exd4 {[%clk 0:02:55.7]} 8. d3 {[%clk 0:02:46.9]} 8...
Be7 {[%clk 0:02:54.8]} 9. Bg5 {[%clk 0:02:46.4]} 9... O-O {[%clk 0:02:54.3]} 10.
Re1 {[%clk 0:02:43.3]} 10... h6 {[%clk 0:02:49.5]} 11. Bxf6 {[%clk 0:02:42.8]}
11... Bxf6 {[%clk 0:02:50.4]} 12. Nbd2 {[%clk 0:02:42.9]} 12... Bf5 {[%clk
0:02:50]} 13. Ne4 {[%clk 0:02:42.4]} 13... Be7 {[%clk 0:02:50.5]} 14. Qb3 {[%clk
0:02:25.8]} 14... Qd7 {[%clk 0:02:49]} 15. Qb5 {[%clk 0:02:14.5]} 15... Nb4
{[%clk 0:01:50.4]} 16. Qxd7 {[%clk 0:02:02.5]} 16... Bxd7 {[%clk 0:01:51.3]} 17.
Ne5 {[%clk 0:00:23.9]} 17... Bf5 {[%clk 0:01:48.6]} 18. Rad1 {[%clk 0:00:11.5]}
18... f6 {[%clk 0:01:31.1]} 19. a3 {[%clk 0:00:07.1]} 19... fxe5 {[%clk
0:01:14.8]} 20. axb4 {[%clk 0:00:06.6]} 20... cxb4 {[%clk 0:01:15.7]} 21. Re2
{[%clk 0:00:01.4]} 21... Bg4 {[%clk 0:01:14.2]} 0-1

[Event "*** Titled Tuesday Blitz"]
[Site "Chess.com"]
[Date "2020.04.21"]
[Round "1"]
[White "ToivoK3"]
[Black "Agnes66678"]
[Result "1-0"]
[WhiteElo "2900"]
[BlackElo "2456"]
[TimeControl "180+1"]
[EndTime "10:05:49 PDT"]
[Termination "ToivoK3 won by resignation"]

1. b3 {[%clk 0:03:00.9]} 1... Nf6 {[%clk 0:02:49.7]} 2. Bb2 {[%clk 0:02:59.9]}
2... g6 {[%clk 0:02:50]} 3. Nf3 {[%clk 0:02:59.8]} 3... Bg7 {[%clk 0:02:49.2]}
4. e3 {[%clk 0:03:00.3]} 4... O-O {[%clk 0:02:49.6]} 5. d4 {[%clk 0:03:01.2]}
5... d5 {[%clk 0:02:49.9]} 6. Be2 {[%clk 0:03:00.5]} 6... b6 {[%clk 0:02:50.1]}
7. O-O {[%clk 0:03:00.2]} 7... Bb7 {[%clk 0:02:50.4]} 8. c4 {[%clk 0:03:01.1]}
8... Nbd7 {[%clk 0:02:50.5]} 9. Nc3 {[%clk 0:02:59.8]} 9... dxc4 {[%clk
0:02:48.4]} 10. bxc4 {[%clk 0:02:48.7]} 10... c5 {[%clk 0:02:48.3]} 11. d5
{[%clk 0:02:38.4]} 11... Ne8 {[%clk 0:02:46.4]} 12. Qd2 {[%clk 0:02:28.6]} 12...
Nd6 {[%clk 0:02:43.1]} 13. a4 {[%clk 0:02:22.9]} 13... Ba6 {[%clk 0:02:42.9]}
14. Nb5 {[%clk 0:02:20.2]} 14... Bxb5 {[%clk 0:02:38.9]} 15. axb5 {[%clk
0:02:19]} 15... f5 {[%clk 0:02:38]} 16. Bxg7 {[%clk 0:02:05.6]} 16... Kxg7
{[%clk 0:02:38.9]} 17. Ng5 {[%clk 0:02:06]} 17... Rf6 {[%clk 0:02:31.5]} 18.
Ne6+ {[%clk 0:02:05.2]} 18... Rxe6 {[%clk 0:02:31.6]} 19. dxe6 {[%clk
0:02:06.1]} 19... Nf6 {[%clk 0:02:31]} 20. Rfd1 {[%clk 0:01:53]} 20... Qc8
{[%clk 0:02:29.4]} 21. Bf3 {[%clk 0:01:41.6]} 21... Rb8 {[%clk 0:02:28.8]} 22.
Rxa7 {[%clk 0:01:38.4]} 22... Qxe6 {[%clk 0:02:29.1]} 23. Bd5 {[%clk 0:01:35.3]}
23... Nxd5 {[%clk 0:02:25.1]} 24. Qxd5 {[%clk 0:01:21.8]} 24... Qxd5 {[%clk
0:02:23.2]} 25. Rxd5 {[%clk 0:01:21.8]} 25... Kf6 {[%clk 0:02:19.4]} 26. Ra4
{[%clk 0:01:20.5]} 26... Ke6 {[%clk 0:02:13.9]} 27. Rd3 {[%clk 0:01:16.6]} 27...
Rf8 {[%clk 0:02:11.4]} 28. f3 {[%clk 0:01:15.9]} 28... h5 {[%clk 0:02:09.1]} 29.
Rc3 {[%clk 0:01:12.2]} 29... g5 {[%clk 0:02:07.9]} 30. Ra6 {[%clk 0:01:11.9]}
30... Rb8 {[%clk 0:02:07.2]} 31. Kf2 {[%clk 0:01:10.6]} 31... Ke5 {[%clk
0:02:07.2]} 32. Ke2 {[%clk 0:01:09]} 32... f4 {[%clk 0:02:07.2]} 33. Kd3 {[%clk
0:01:02.6]} 33... fxe3 {[%clk 0:02:06.3]} 34. Kxe3 {[%clk 0:01:00.1]} 34... Nf5+
{[%clk 0:02:06.6]} 35. Kf2 {[%clk 0:00:59.6]} 35... Nd4 {[%clk 0:02:06.6]} 36.
Re3+ {[%clk 0:00:56.7]} 36... Kf6 {[%clk 0:02:06.6]} 37. Rea3 {[%clk 0:00:52.9]}
37... Nf5 {[%clk 0:02:00.4]} 38. Ra8 {[%clk 0:00:52.2]} 38... Rb7 {[%clk
0:01:58.6]} 39. R3a7 {[%clk 0:00:51.4]} 39... Rxa7 {[%clk 0:01:57.3]} 40. Rxa7
{[%clk 0:00:52.3]} 40... Nd6 {[%clk 0:01:58]} 41. Ra4 {[%clk 0:00:51.6]} 41...
Ke5 {[%clk 0:01:57.4]} 42. Ke3 {[%clk 0:00:51.8]} 42... e6 {[%clk 0:01:56.4]}
43. Kd3 {[%clk 0:00:51.9]} 43... Nf5 {[%clk 0:01:53]} 44. Ra6 {[%clk 0:00:50]}
44... g4 {[%clk 0:01:50]} 45. fxg4 {[%clk 0:00:49.5]} 45... hxg4 {[%clk
0:01:49.9]} 46. Rxb6 {[%clk 0:00:49.6]} 46... Nh4 {[%clk 0:01:50]} 47. Rc6
{[%clk 0:00:36.7]} 47... Nxg2 {[%clk 0:01:46.9]} 48. b6 {[%clk 0:00:36.4]} 48...
Nf4+ {[%clk 0:01:45.1]} 49. Kd2 {[%clk 0:00:36.4]} 1-0

[Event "*** Titled Tuesday Blitz"]
[Site "Chess.com"]
[Date "2020.04.21"]
[Round "1"]
[White "CroissantNeuf"]
[Black "Nakachuk"]
[Result "0-1"]
[WhiteElo "2402"]
[BlackElo "2776"]
[TimeControl "180+1"]
[EndTime "10:05:50 PDT"]
[Termination "Nakachuk won by resignation"]

1. Nf3 {[%clk 0:03:00.9]} 1... Nf6 {[%clk 0:02:59.3]} 2. g3 {[%clk 0:03:00.6]}
2... g6 {[%clk 0:02:59.7]} 3. b3 {[%clk 0:02:59.7]} 3... Bg7 {[%clk 0:02:59.9]}
4. Bb2 {[%clk 0:02:58.3]} 4... O-O {[%clk 0:03:00.4]} 5. Bg2 {[%clk 0:02:58.9]}
5... d6 {[%clk 0:03:00.8]} 6. d4 {[%clk 0:02:58.8]} 6... b5 {[%clk 0:02:56]} 7.
a4 {[%clk 0:02:52.4]} 7... bxa4 {[%clk 0:02:55]} 8. Rxa4 {[%clk 0:02:49.4]} 8...
Bb7 {[%clk 0:02:54.7]} 9. O-O {[%clk 0:02:48.6]} 9... Nbd7 {[%clk 0:02:55.1]}
10. Nbd2 {[%clk 0:02:46.7]} 10... c5 {[%clk 0:02:55.4]} 11. Qa1 {[%clk
0:02:43.6]} 11... a6 {[%clk 0:02:50.7]} 12. Nc4 {[%clk 0:02:37.9]} 12... Qc7
{[%clk 0:02:44.1]} 13. Na5 {[%clk 0:02:29]} 13... Be4 {[%clk 0:02:42.2]} 14.
dxc5 {[%clk 0:02:13.7]} 14... Nxc5 {[%clk 0:02:38.6]} 15. Rc4 {[%clk 0:02:10.7]}
15... d5 {[%clk 0:02:32.3]} 16. Be5 {[%clk 0:01:55.6]} 16... Qb6 {[%clk
0:02:25.4]} 17. Rc3 {[%clk 0:01:50.1]} 17... Rfc8 {[%clk 0:02:11.2]} 18. Bd4
{[%clk 0:01:36.3]} 18... Ne8 {[%clk 0:02:10.5]} 19. Bxg7 {[%clk 0:01:10.7]}
19... Nxg7 {[%clk 0:02:11.4]} 20. Qa3 {[%clk 0:00:59.2]} 20... Nb7 {[%clk
0:02:00.6]} 21. Rxc8+ {[%clk 0:00:45.1]} 21... Rxc8 {[%clk 0:02:01.5]} 22. Nxb7
{[%clk 0:00:45.5]} 22... Qxb7 {[%clk 0:02:01.9]} 23. Rc1 {[%clk 0:00:21.8]}
23... Rxc2 {[%clk 0:01:58]} 24. Rxc2 {[%clk 0:00:21.5]} 24... Bxc2 {[%clk
0:01:58.9]} 25. Nd4 {[%clk 0:00:20.3]} 25... Bf5 {[%clk 0:01:49.4]} 26. Qc5
{[%clk 0:00:19.4]} 26... Ne6 {[%clk 0:01:40.7]} 27. Nxe6 {[%clk 0:00:16.5]}
27... Bxe6 {[%clk 0:01:41.6]} 28. b4 {[%clk 0:00:16.8]} 28... Qb5 {[%clk
0:01:37.3]} 29. Qxe7 {[%clk 0:00:15.5]} 29... Qxe2 {[%clk 0:01:34.1]} 30. Qc5
{[%clk 0:00:13]} 30... Qd1+ {[%clk 0:01:30.3]} 31. Bf1 {[%clk 0:00:13]} 31...
Bh3 {[%clk 0:01:29.4]} 32. Qc8+ {[%clk 0:00:13.2]} 32... Bxc8 {[%clk 0:01:28.3]}
0-1

[Event "*** Titled Tuesday Blitz"]
[Site "Chess.com"]
[Date "2020.04.21"]
[Round "1"]
[White "Durarbayli"]
[Black "evgenyermolaev"]
[Result "0-1"]
[WhiteElo "2808"]
[BlackElo "2457"]
[TimeControl "180+1"]
[EndTime "10:05:51 PDT"]
[Termination "evgenyermolaev won by resignation"]

1. e4 {[%clk 0:03:00.9]} 1... c5 {[%clk 0:02:54.7]} 2. Nf3 {[%clk 0:03:00.8]}
2... d6 {[%clk 0:02:54.8]} 3. d4 {[%clk 0:03:00.6]} 3... cxd4 {[%clk 0:02:55.7]}
4. Nxd4 {[%clk 0:03:01.5]} 4... Nf6 {[%clk 0:02:56.1]} 5. Nc3 {[%clk 0:03:01.9]}
5... a6 {[%clk 0:02:56.5]} 6. Be2 {[%clk 0:03:01.5]} 6... e5 {[%clk 0:02:55.4]}
7. Nb3 {[%clk 0:03:01.5]} 7... Be7 {[%clk 0:02:55.8]} 8. O-O {[%clk 0:03:01.7]}
8... O-O {[%clk 0:02:55.9]} 9. Be3 {[%clk 0:03:01.8]} 9... Be6 {[%clk
0:02:52.4]} 10. f4 {[%clk 0:03:01.8]} 10... exf4 {[%clk 0:02:51.6]} 11. Bxf4
{[%clk 0:03:01.8]} 11... Nc6 {[%clk 0:02:48.6]} 12. Kh1 {[%clk 0:03:01.8]} 12...
Qc7 {[%clk 0:02:40.9]} 13. Qe1 {[%clk 0:02:57.7]} 13... Nd7 {[%clk 0:02:30.9]}
14. Nd5 {[%clk 0:02:38.7]} 14... Bxd5 {[%clk 0:02:30.2]} 15. exd5 {[%clk
0:02:38.2]} 15... Nce5 {[%clk 0:02:26.7]} 16. Nd4 {[%clk 0:02:36.2]} 16... Rfe8
{[%clk 0:02:21.7]} 17. Qg3 {[%clk 0:02:32.2]} 17... Bf8 {[%clk 0:02:08.5]} 18.
c3 {[%clk 0:02:20.5]} 18... Nf6 {[%clk 0:01:43.2]} 19. Bxe5 {[%clk 0:01:48]}
19... dxe5 {[%clk 0:01:32.9]} 20. Rxf6 {[%clk 0:00:56.9]} 20... Qd8 {[%clk
0:01:32.2]} 21. Raf1 {[%clk 0:00:28]} 21... exd4 {[%clk 0:01:32.1]} 22. Bh5
{[%clk 0:00:20.8]} 22... Re3 {[%clk 0:01:24.4]} 23. Qg4 {[%clk 0:00:10.4]} 23...
Qxf6 {[%clk 0:01:19.7]} 0-1

[Event "*** Titled Tuesday Blitz"]
[Site "Chess.com"]
[Date "2020.04.21"]
[Round "1"]
[White "WPWPWP-2015"]
[Black "Pechen_Yeltsina"]
[Result "0-1"]
[WhiteElo "2423"]
[BlackElo "2804"]
[TimeControl "180+1"]
[EndTime "10:05:54 PDT"]
[Termination "Pechen_Yeltsina won by resignation"]

1. e4 {[%clk 0:01:15]} 1... g6 {[%clk 0:02:58.9]} 2. d4 {[%clk 0:01:14.5]} 2...
Bg7 {[%clk 0:02:59.4]} 3. Nc3 {[%clk 0:01:12.6]} 3... d6 {[%clk 0:02:59.8]} 4.
Nf3 {[%clk 0:01:12.5]} 4... a6 {[%clk 0:03:00.2]} 5. Bc4 {[%clk 0:01:12.2]} 5...
e6 {[%clk 0:03:00.5]} 6. O-O {[%clk 0:01:12]} 6... b5 {[%clk 0:03:00.8]} 7. Bd3
{[%clk 0:01:11.8]} 7... Bb7 {[%clk 0:03:01.3]} 8. a3 {[%clk 0:01:11.5]} 8... Nd7
{[%clk 0:03:01.7]} 9. Re1 {[%clk 0:01:11.9]} 9... Ne7 {[%clk 0:03:02]} 10. h3
{[%clk 0:01:12.3]} 10... h6 {[%clk 0:03:02.2]} 11. Bf4 {[%clk 0:01:12.3]} 11...
g5 {[%clk 0:03:02.5]} 12. Be3 {[%clk 0:01:12.4]} 12... Ng6 {[%clk 0:03:02.1]}
13. Nh2 {[%clk 0:01:12]} 13... O-O {[%clk 0:03:00.8]} 14. Ne2 {[%clk 0:01:10.8]}
14... c5 {[%clk 0:02:57.3]} 15. c3 {[%clk 0:01:09.5]} 15... c4 {[%clk
0:02:57.8]} 16. Bc2 {[%clk 0:01:08.2]} 16... f5 {[%clk 0:02:58]} 17. exf5 {[%clk
0:01:07.9]} 17... exf5 {[%clk 0:02:58.9]} 18. f4 {[%clk 0:01:07.8]} 18... Nb6
{[%clk 0:02:55.8]} 19. Qd2 {[%clk 0:01:06.9]} 19... Nd5 {[%clk 0:02:55.5]} 20.
Rf1 {[%clk 0:01:06.7]} 20... Qe7 {[%clk 0:02:48.9]} 21. Rf3 {[%clk 0:01:00.8]}
21... Rae8 {[%clk 0:02:46.8]} 22. Nf1 {[%clk 0:00:53.2]} 22... Ndxf4 {[%clk
0:02:44.3]} 23. Nxf4 {[%clk 0:00:51.8]} 23... gxf4 {[%clk 0:02:43.1]} 24. Rxf4
{[%clk 0:00:51.5]} 24... Nxf4 {[%clk 0:02:43]} 25. Bxf4 {[%clk 0:00:51.7]} 25...
Qe2 {[%clk 0:02:43.3]} 26. Qxe2 {[%clk 0:00:49.4]} 26... Rxe2 {[%clk 0:02:44.2]}
27. Ne3 {[%clk 0:00:49.3]} 27... Re8 {[%clk 0:02:42]} 28. Bxf5 {[%clk
0:00:44.1]} 28... R8xe3 {[%clk 0:02:38.6]} 29. Bxe3 {[%clk 0:00:42.9]} 29...
Rxe3 {[%clk 0:02:39.5]} 30. Kf2 {[%clk 0:00:40.1]} 30... Re7 {[%clk 0:02:38.6]}
31. g4 {[%clk 0:00:39]} 31... Bf6 {[%clk 0:02:36]} 32. a4 {[%clk 0:00:38.6]}
32... Bh4+ {[%clk 0:02:35.6]} 33. Kf1 {[%clk 0:00:38.1]} 33... Bf3 {[%clk
0:02:32.5]} 34. axb5 {[%clk 0:00:37.5]} 34... axb5 {[%clk 0:02:33.4]} 35. Kg1
{[%clk 0:00:25.1]} 35... Bg3 {[%clk 0:02:32]} 36. Rf1 {[%clk 0:00:23.4]} 36...
Re1 {[%clk 0:02:27.2]} 37. Rxe1 {[%clk 0:00:23.3]} 37... Bxe1 {[%clk 0:02:28.1]}
38. Bd7 {[%clk 0:00:22.8]} 38... Bd2 {[%clk 0:02:24.8]} 39. Bxb5 {[%clk
0:00:22.2]} 39... Bd5 {[%clk 0:02:25.3]} 40. Kf2 {[%clk 0:00:18.6]} 40... Bc1
{[%clk 0:02:25.7]} 41. Ke2 {[%clk 0:00:18.8]} 41... Bxb2 {[%clk 0:02:25.1]} 42.
Kd2 {[%clk 0:00:19.2]} 42... Be6 {[%clk 0:02:21.5]} 43. h4 {[%clk 0:00:17.7]}
43... d5 {[%clk 0:02:20.4]} 44. g5 {[%clk 0:00:17.6]} 44... hxg5 {[%clk
0:02:20.1]} 45. hxg5 {[%clk 0:00:18.5]} 45... Kg7 {[%clk 0:02:20.3]} 46. Be8
{[%clk 0:00:17.3]} 46... Ba3 {[%clk 0:02:20]} 47. Ke3 {[%clk 0:00:17]} 47...
Bc1+ {[%clk 0:02:20.2]} 48. Kf3 {[%clk 0:00:16.7]} 48... Bxg5 {[%clk 0:02:21.1]}
49. Ke2 {[%clk 0:00:16.8]} 49... Bg4+ {[%clk 0:02:20.4]} 50. Ke1 {[%clk
0:00:16.6]} 50... Kf6 {[%clk 0:02:20.7]} 51. Bc6 {[%clk 0:00:16.1]} 51... Bf3
{[%clk 0:02:18.5]} 52. Bb7 {[%clk 0:00:15.8]} 52... Kf5 {[%clk 0:02:17.9]} 53.
Kf2 {[%clk 0:00:14.8]} 53... Ke4 {[%clk 0:02:16.6]} 54. Bxd5+ {[%clk 0:00:13.9]}
54... Kxd5 {[%clk 0:02:17.5]} 55. Kxf3 {[%clk 0:00:14.3]} 55... Bd2 {[%clk
0:02:18.4]} 0-1